fUST/lending_fUST_20260411
["ID","MTS","AMOUNT","RATE_DAILY","PERIOD"]
[420289172,1775912656874,4150.33,0.00030136,120]
[420289173,1775912657104,4150.33,0.00030136,120]
[420289174,1775912657446,4150.33,0.00030136,120]
[420289175,1775912657686,4150.33,0.00030136,120]
[420289176,1775912657941,4150.33,0.00030136,120]
[420289177,1775912658194,4150.33,0.00030136,120]
[420289178,1775912658434,4150.33,0.00030136,120]
[420289179,1775912658680,4150.33,0.00030136,120]
[420289180,1775912658902,4150.33,0.00030136,120]
[420289181,1775912659176,4150.33,0.00030136,120]
[420289182,1775912659497,4150.33,0.00030136,120]
[420289183,1775912659728,4150.33,0.00030136,120]
[420289184,1775912659946,4150.33,0.00030136,120]
[420289185,1775912660192,4150.36,0.00030136,120]
[420289186,1775912665997,6065.74,0.00030136,120]
[420289187,1775912666119,6065.74,0.00030136,120]
[420289188,1775912666334,6065.74,0.00030136,120]
[420289189,1775912666557,6065.74,0.00030136,120]
[420289190,1775912666819,6065.74,0.00030136,120]
[420289191,1775912667080,6065.74,0.00030136,120]
[420289192,1775912667371,6065.74,0.00030136,120]
[420289193,1775912667543,6065.74,0.00030136,120]
[420289194,1775912667798,6065.74,0.00030136,120]
[420289195,1775912668048,6065.74,0.00030136,120]
[420289196,1775912668309,6065.74,0.00030136,120]
[420289197,1775912668533,6065.74,0.00030136,120]
[420289198,1775912668994,6065.74,0.00030136,120]
[420289199,1775912669232,6065.74,0.00030136,120]
[420289200,1775912669447,6065.74,0.00030136,120]
[420289201,1775912669668,6065.74,0.00030136,120]
[420289202,1775912669894,6065.74,0.00030136,120]
[420289203,1775912670120,6065.74,0.00030136,120]
[420289204,1775912670390,6065.74,0.00030136,120]
[420289205,1775912670633,6065.74,0.00030136,120]
[420289206,1775912670894,6065.74,0.00030136,120]
[420289207,1775912671348,6065.74,0.00030136,120]
[420289208,1775912671589,6065.74,0.00030136,120]
[420289209,1775912673475,6065.84156808,0.00030136,120]
[420289210,1775912682627,11814.62,0.00030136,120]
[420289211,1775912682961,11814.62,0.00030136,120]
[420289212,1775912683085,1179.17380211,0.00030136,120]
[420289282,1775913032272,-1327.0,6.504e-05,2]
[420289283,1775913032282,-22.64553418,6.57e-05,2]
[420289284,1775913032302,-679.45363298,6.57e-05,2]
[420289285,1775913032315,-111.90083284,6.57e-05,2]
[420289286,1775913032324,-513.0,6.57e-05,2]
[420289287,1775913032338,-300.0,6.77e-05,2]
[420289288,1775913032353,-300.0,7.599e-05,2]
[420289289,1775913032375,-196.35993676,7.599e-05,2]
[420289290,1775913032387,-688.64006324,7.599e-05,2]
[420289291,1775913032396,-2210.64553418,7.6e-05,2]
[420289301,1775913038802,-1327.0,6.439e-05,2]
[420289302,1775913038843,-3053.98068409,7.6e-05,2]
[420289303,1775913038940,-317.96272121,7.6e-05,2]
[420289321,1775913041459,-5371.0095716,7.6e-05,2]
[420289322,1775913041479,-1000.0,7.6e-05,2]
[420289323,1775913041520,-914.64223513,7.6e-05,2]
[420289339,1775913043213,-500.0,7.6e-05,2]
[420289562,1775913046996,-686.84806561,7.524e-05,2]
[420289564,1775913047010,-7565.89078811,7.524e-05,2]
[420289566,1775913047022,-11135.06652233,7.6e-05,2]
[420289569,1775913047039,-528.79904169,7.6e-05,2]
[420289571,1775913047051,-881.72812889,7.6e-05,2]
[420290042,1775914232164,-304.6,4.95e-05,2]
[420290044,1775914232183,-152.3,5e-05,2]
[420290046,1775914232224,-152.3,5e-05,2]
[420290048,1775914232234,-188.17008973,5.15e-05,2]
[420290050,1775914232248,-79.49317666,5.3e-05,2]
[420290075,1775914238727,-72.80682334,5.3e-05,2]
[420290076,1775914238739,-517.0,6.86e-05,2]
[420290077,1775914238754,-300.0,6.998e-05,2]
[420290078,1775914238765,-500.0,6.999e-05,2]
[420290079,1775914238776,-500.0,6.999e-05,2]
[420290080,1775914238789,-500.0,6.999e-05,2]
[420290081,1775914238804,-500.0,6.999e-05,2]
[420290082,1775914238814,-500.0,6.999e-05,2]
[420290083,1775914238832,-500.0,6.999e-05,2]
[420290084,1775914238846,-417.82154104,6.999e-05,2]
[420290085,1775914238857,-500.0,6.999e-05,2]
[420290086,1775914238873,-500.0,6.999e-05,2]
[420290087,1775914238883,-1162.27824257,6.999e-05,2]
[420290088,1775914238893,-1162.27824257,6.999e-05,2]
[420290089,1775914238904,-1162.27824257,6.999e-05,2]
[420290090,1775914238920,-1162.27824257,6.999e-05,2]
[420290091,1775914238929,-1162.27824257,6.999e-05,2]
[420290092,1775914238943,-1162.27824257,6.999e-05,2]
[420290093,1775914238955,-1162.27824257,6.999e-05,2]
[420290094,1775914238967,-1171.57646852,6.999e-05,2]
[420290095,1775914238977,-1171.57646852,6.999e-05,2]
[420290096,1775914238990,-1171.57646852,6.999e-05,2]
[420290097,1775914239006,-1171.57646852,6.999e-05,2]
[420290098,1775914239022,-564.17441026,6.999e-05,2]
[420290099,1775914239037,-607.40205826,6.999e-05,2]
[420290100,1775914239047,-1171.57646852,6.999e-05,2]
[420290101,1775914239065,-1171.57646852,6.999e-05,2]
[420290102,1775914239079,-503.4224317,6.999e-05,2]
[420290103,1775914239099,-878.06148742,6.999e-05,2]
[420290104,1775914239110,-1381.48391912,6.999e-05,2]
[420290105,1775914239126,-354.24100947,6.999e-05,2]
[420290106,1775914239155,-341.79023619,6.999e-05,2]
[420290107,1775914239169,-66042.4224839,7e-05,2]
[420290108,1775914241099,-5352.3428179,7e-05,2]
[420290109,1775914241111,-12562.84892172,7e-05,2]
[420290113,1775914243655,-12168.54577648,7e-05,2]
[420290114,1775914243667,-151.0,7e-05,2]
[420290115,1775914243683,-300.0,7.068e-05,2]
[420290116,1775914243699,-300.0,7.068e-05,2]
[420290117,1775914243712,-300.0,7.068e-05,2]
[420290118,1775914243727,-300.0,7.068e-05,2]
[420290119,1775914243748,-300.0,7.068e-05,2]
[420290120,1775914243758,-300.0,7.068e-05,2]
[420290121,1775914243772,-300.0,7.068e-05,2]
[420290122,1775914243799,-300.0,7.068e-05,2]
[420290123,1775914243810,-300.0,7.068e-05,2]
[420290124,1775914243819,-300.0,7.068e-05,2]
[420290125,1775914243833,-300.0,7.068e-05,2]
[420290127,1775914243847,-300.0,7.068e-05,2]
[420290130,1775914243858,-300.0,7.068e-05,2]
[420290131,1775914243868,-300.0,7.068e-05,2]
[420290132,1775914243879,-300.0,7.068e-05,2]
[420290133,1775914243888,-205.24073344,7.068e-05,2]
[420290134,1775914243898,-600.0,7.139e-05,2]
[420290135,1775914243908,-222.04070588,7.15e-05,2]
[420290136,1775914243918,-3005.15834451,7.6e-05,2]
[420290137,1775914243929,-151.0,7.6e-05,2]
[420290138,1775914243942,-500.0,7.733e-05,2]
[420290139,1775914243953,-500.0,7.733e-05,2]
[420290140,1775914243963,-214.881172,7.751e-05,2]
[420290141,1775914243974,-423.1891944,7.85e-05,2]
[420290142,1775914243988,-720.0,7.853e-05,2]
[420290143,1775914243998,-14401.205491,8e-05,2]
[420290144,1775914244008,-324.8899299,8.141e-05,2]
[420290145,1775914244023,-537.11788724,8.219e-05,2]
[420290146,1775914244032,-500.0,8.219e-05,2]
[420290147,1775914244043,-1000.0,8.281e-05,2]
[420290148,1775914244054,-361.98155821,8.323e-05,2]
[420290149,1775914244069,-259.10850531,8.323e-05,2]
[420290150,1775914244082,-240.89149469,8.323e-05,2]
[420290151,1775914244091,-454.80850531,8.323e-05,2]
[420290155,1775914246420,-45.19149469,8.323e-05,2]
[420290156,1775914246446,-500.0,8.323e-05,2]
[420290157,1775914246455,-500.0,8.323e-05,2]
[420290158,1775914246477,-162.380719,8.399e-05,2]
[420290159,1775914246490,-151.0,8.399e-05,2]
[420290160,1775914246503,-185.34996248,8.399e-05,2]
[420290161,1775914246522,-151.0,8.399e-05,2]
[420290162,1775914246539,-151.0,8.399e-05,2]
[420290163,1775914246571,-151.0,8.399e-05,2]
[420290164,1775914246581,-151.0,8.399e-05,2]
[420290165,1775914246598,-151.0,8.399e-05,2]
[420290166,1775914246608,-151.0,8.399e-05,2]
[420290167,1775914246618,-151.0,8.399e-05,2]
[420290168,1775914246627,-537.6845,8.399e-05,2]
[420290169,1775914246638,-151.0,8.399e-05,2]
[420290170,1775914246648,-151.0,8.399e-05,2]
[420290171,1775914246659,-151.0,8.399e-05,2]
[420290172,1775914246668,-151.0,8.399e-05,2]
[420290173,1775914246679,-172.30842008,8.399e-05,2]
[420290174,1775914246689,-151.0,8.399e-05,2]
[420290175,1775914246707,-2150.738,8.399e-05,2]
[420290176,1775914246717,-156.587,8.399e-05,2]
[420290177,1775914246727,-537.6845,8.399e-05,2]
[420290178,1775914246752,-500.0,8.413e-05,2]
[420290179,1775914246765,-171.22597383,8.417e-05,2]
[420290180,1775914246788,-557.5788265,8.454e-05,2]
[420290181,1775914246816,-578.20924308,8.509e-05,2]
[420290182,1775914246826,-250.0,8.555e-05,2]
[420290183,1775914246850,-599.60298507,8.564e-05,2]
[420290184,1775914246864,-621.78829552,8.619e-05,2]
[420290185,1775914246874,-864.0,8.638e-05,2]
[420290186,1775914246910,-644.79446246,8.674e-05,2]
[420290187,1775914246919,-668.65185757,8.729e-05,2]
[420290188,1775914246933,-536.4990501,8.784e-05,2]
[420290189,1775914246948,-156.8929262,8.784e-05,2]
[420290190,1775914246957,-1500.0,8.828e-05,2]
[420290191,1775914246969,-719.04747942,8.839e-05,2]
[420290192,1775914246986,-1000.0,8.871e-05,2]
[420290193,1775914246999,-1000.0,8.871e-05,2]
[420290194,1775914247014,-1000.0,8.871e-05,2]
[420290196,1775914247030,-1000.0,8.871e-05,2]
[420290197,1775914247055,-745.65223616,8.894e-05,2]
[420290198,1775914247065,-168.3888056,8.947e-05,2]
[420290199,1775914247082,-557.5788265,8.947e-05,2]
[420290200,1775914247104,-151.0,8.947e-05,2]
[420290201,1775914247119,-2230.315306,8.947e-05,2]
[420290202,1775914247137,-773.2413689,8.949e-05,2]
[420290203,1775914247149,-4410.25331063,8.955e-05,2]
[420290204,1775914247303,-34.92470446,8.955e-05,2]
[420290205,1775914247322,-500.0,8.961e-05,2]
[420290206,1775914247333,-801.85129955,9.004e-05,2]
[420290207,1775914247358,-831.51979763,9.059e-05,2]
[420290208,1775914247371,-498.87635408,9.114e-05,2]
[420290245,1775914828805,226.86753,1.001e-05,2]
[420290300,1775915434118,258.2,8.2e-05,120]
[420290338,1775915438586,-4062.43394479,4.827e-05,2]
[420290353,1775915438755,-937.56605521,4.827e-05,2]
[420290355,1775915438775,-676.39055264,4.95e-05,2]
[420290357,1775915438785,-151.36,5e-05,2]
[420290359,1775915438795,-151.36,5e-05,2]
[420290361,1775915438805,-151.36,5e-05,2]
[420290363,1775915438821,-151.36,5e-05,2]
[420290365,1775915438832,-151.36,5e-05,2]
[420290367,1775915438842,-300.0,5.099e-05,2]
[420290369,1775915438861,-151.36,5.1e-05,2]
[420290372,1775915438871,-151.36,5.1e-05,2]
[420290375,1775915438881,-151.36,5.1e-05,2]
[420290378,1775915438899,-151.36,5.1e-05,2]
[420290380,1775915438909,-151.36,5.1e-05,2]
[420290382,1775915438921,-151.36,5.1e-05,2]
[420290384,1775915438932,-151.36,5.2e-05,2]
[420290386,1775915438951,-151.36,5.2e-05,2]
[420290388,1775915438962,-151.36,5.2e-05,2]
[420290389,1775915438972,-151.36,5.2e-05,2]
[420290391,1775915438989,-151.36,5.2e-05,2]
[420290393,1775915439004,-151.36,5.3e-05,2]
[420290395,1775915439016,-151.36,5.3e-05,2]
[420290398,1775915439031,-151.36,5.3e-05,2]
[420290399,1775915439055,-151.36,5.3e-05,2]
[420290401,1775915439070,-151.36,5.3e-05,2]
[420290404,1775915439081,-151.36,5.3e-05,2]
[420290405,1775915439107,-300.0,5.303e-05,2]
[420290407,1775915439120,-300.0,5.303e-05,2]
[420290410,1775915439144,-300.0,5.303e-05,2]
[420290412,1775915439154,-300.0,5.303e-05,2]
[420290414,1775915439173,-300.0,5.303e-05,2]
[420290415,1775915439191,-300.0,5.303e-05,2]
[420290418,1775915439209,-300.0,5.303e-05,2]
[420290419,1775915439219,-300.0,5.303e-05,2]
[420290421,1775915439229,-300.0,5.303e-05,2]
[420290423,1775915439243,-300.0,5.303e-05,2]
[420290425,1775915439256,-300.0,5.303e-05,2]
[420290427,1775915439266,-300.0,5.303e-05,2]
[420290429,1775915439277,-300.0,5.303e-05,2]
[420290431,1775915439307,-300.0,5.303e-05,2]
[420290433,1775915439317,-300.0,5.303e-05,2]
[420290435,1775915439334,-151.36,5.4e-05,2]
[420290437,1775915439348,-151.36,5.4e-05,2]
[420290439,1775915439373,-151.36,5.4e-05,2]
[420290441,1775915439395,-151.36,5.4e-05,2]
[420290443,1775915439406,-151.36,5.4e-05,2]
[420290445,1775915439417,-151.36,5.4e-05,2]
[420290448,1775915439440,-600.0,5.408e-05,2]
[420290450,1775915439463,-151.36,5.5e-05,2]
[420290452,1775915439472,-151.36,5.5e-05,2]
[420290454,1775915439484,-420.0,5.609e-05,2]
[420290456,1775915439499,-720.0,5.949e-05,2]
[420290458,1775915439512,-587.0,6.17e-05,2]
[420290459,1775915439524,-362.88164043,6.443e-05,2]
[420290461,1775915439535,-864.0,6.544e-05,2]
[420290464,1775915439545,-523.0,6.787e-05,2]
[420290466,1775915439558,-351.89308875,6.861e-05,30]
[420290468,1775915439571,-798.14085212,6.95e-05,2]
[420290470,1775915439581,-1000.0,7.198e-05,2]
[420290485,1775915439765,-1957.856,7.845e-05,2]
[420290487,1775915439788,-537.6845,7.845e-05,2]
[420290489,1775915439799,-2150.738,7.845e-05,2]
[420290491,1775915439809,-2030.296672,7.9e-05,2]
[420290493,1775915439823,-557.5788265,7.9e-05,2]
[420290494,1775915439836,-1000.0,7.918e-05,2]
[420290495,1775915439846,-244.0,7.918e-05,2]
[420290496,1775915439859,-2105.41764886,7.955e-05,2]
[420290497,1775915439879,-578.20924308,7.955e-05,2]
[420290498,1775915439889,-2183.31810187,8.01e-05,2]
[420290499,1775915439902,-599.60298507,8.01e-05,2]
[420290500,1775915439918,-1460.33024588,8.065e-05,2]
[420290501,1775915439930,-621.78829552,8.065e-05,2]
[420290502,1775915439958,-644.79446246,8.12e-05,2]
[420290503,1775915439979,-668.65185757,8.175e-05,2]
[420290504,1775915439995,-500.0,8.219e-05,2]
[420290505,1775915440014,-693.3919763,8.23e-05,2]
[420290506,1775915440028,-719.04747942,8.285e-05,2]
[420290507,1775915440049,-745.65223616,8.34e-05,2]
[420290508,1775915440087,-2230.315306,8.393e-05,2]
[420290509,1775915440097,-773.2413689,8.395e-05,2]
[420290510,1775915440137,-774.9509807,8.399e-05,2]
[420290511,1775915440170,-411.94230393,8.399e-05,2]
[420290512,1775915440187,-980.98056699,8.399e-05,2]
[420290513,1775915440209,-801.85129955,8.45e-05,2]
[420290514,1775915440237,-831.51979763,8.505e-05,2]
[420290515,1775915440258,-500.0,8.533e-05,2]
[420290516,1775915440278,-500.0,8.533e-05,2]
[420290517,1775915440292,-500.0,8.533e-05,2]
[420290518,1775915440313,-500.0,8.533e-05,2]
[420290519,1775915440356,-500.0,8.557e-05,2]
[420290520,1775915440366,-511.56927674,8.557e-05,2]
[420290523,1775915440406,-500.0,8.557e-05,2]
[420290524,1775915440416,-500.0,8.557e-05,2]
[420290526,1775915440445,-500.0,8.557e-05,2]
[420290527,1775915440463,-500.0,8.557e-05,2]
[420290528,1775915440485,-500.0,8.557e-05,2]
[420290529,1775915440525,-500.0,8.557e-05,2]
[420290530,1775915440535,-500.0,8.557e-05,2]
[420290531,1775915440555,-843.89289246,8.557e-05,2]
[420290532,1775915440564,-843.89289246,8.557e-05,2]
[420290533,1775915440574,-843.89289246,8.557e-05,2]
[420290534,1775915440583,-843.89289246,8.557e-05,2]
[420290535,1775915440609,-843.89289246,8.557e-05,2]
[420290536,1775915440622,-843.89289246,8.557e-05,2]
[420290537,1775915440633,-843.89289246,8.557e-05,2]
[420290538,1775915440650,-843.89289246,8.557e-05,2]
[420290539,1775915440669,-843.89289246,8.557e-05,2]
[420290540,1775915440679,-843.89289246,8.557e-05,2]
[420290541,1775915440688,-882.96200786,8.557e-05,2]
[420290542,1775915440698,-882.96200786,8.557e-05,2]
[420290544,1775915440712,-882.96200786,8.557e-05,2]
[420290545,1775915440722,-882.96200786,8.557e-05,2]
[420290547,1775915440732,-882.96200786,8.557e-05,2]
[420290549,1775915440742,-882.96200786,8.557e-05,2]
[420290551,1775915440757,-882.96200786,8.557e-05,2]
[420290553,1775915440767,-882.96200786,8.557e-05,2]
[420290555,1775915440776,-1700000.0,8.558e-05,2]
[420290557,1775915440786,-862.28603014,8.56e-05,2]
[420290559,1775915440802,-1289.15310307,8.564e-05,2]
[420290561,1775915440817,-684.21899142,8.579e-05,2]
[420290563,1775915440826,-894.19061326,8.615e-05,2]
[420290565,1775915440835,-151.0,8.653e-05,2]
[420290567,1775915440846,-151.0,8.653e-05,2]
[420290569,1775915440859,-162.380719,8.653e-05,2]
[420290571,1775915440868,-156.82605751,8.653e-05,2]
[420290573,1775915440880,-537.6845,8.653e-05,2]
[420290575,1775915440891,-496.47127165,8.653e-05,2]
[420290577,1775915440901,-295.51382045,8.653e-05,2]
[420290579,1775915440910,-156.587,8.653e-05,2]
[420290581,1775915440926,-151.0,8.658e-05,2]
[420290583,1775915440935,-927.27566595,8.67e-05,2]
[420290585,1775915440946,-1000.0,8.71e-05,2]
[420290587,1775915440963,-492.0,8.71e-05,2]
[420290589,1775915440972,-961.58486559,8.725e-05,2]
[420290591,1775915440982,-152.0,8.737e-05,2]
[420290593,1775915440991,-152.0,8.737e-05,2]
[420290595,1775915441001,-152.0,8.74e-05,2]
[420290597,1775915441016,-152.0,8.74e-05,2]
[420290599,1775915441030,-152.0,8.74e-05,2]
[420290601,1775915441042,-152.0,8.74e-05,2]
[420290603,1775915441059,-152.0,8.743e-05,2]
[420290604,1775915441070,-152.0,8.743e-05,2]
[420290606,1775915441080,-152.0,8.743e-05,2]
[420290608,1775915441092,-152.0,8.743e-05,2]
[420290610,1775915441106,-152.0,8.743e-05,2]
[420290612,1775915441125,-151.0,8.757e-05,2]
[420290614,1775915441137,-47803.7077986,8.758e-05,2]
[420290616,1775915441147,-1311.0929707,8.758e-05,2]
[420290618,1775915441166,-1887.6016112,8.758e-05,2]
[420290620,1775915441202,-151.0,8.758e-05,2]
[420290622,1775915441212,-997.16350561,8.78e-05,2]
[420290624,1775915441242,-1647.76921572,8.838e-05,2]
[420290626,1775915441251,-166.0,8.879e-05,2]
[420290628,1775915441287,-948.0,8.879e-05,2]
[420290630,1775915441296,-948.0,8.879e-05,2]
[420290632,1775915441306,-166.0,8.879e-05,2]
[420290634,1775915441326,-723.46359589,8.879e-05,2]
[420290636,1775915441337,-166.0,8.879e-05,2]
[420290638,1775915441346,-272.61022012,8.879e-05,2]
[420290639,1775915441360,-648.0,8.879e-05,2]
[420290641,1775915441383,-161.86712527,8.879e-05,2]
[420290643,1775915441409,-2312.83697232,8.941e-05,2]
[420290645,1775915441421,-919.89115159,8.95e-05,2]
[420290647,1775915441439,-69325.38251008,9.023e-05,2]
[420290649,1775915441455,-1000.0,9.081e-05,2]
[420290651,1775915441468,-1000.0,9.081e-05,2]
[420290653,1775915441484,-1000.0,9.081e-05,2]
[420290655,1775915441511,-1000.0,9.081e-05,2]
[420290657,1775915441525,-174.52076652,9.201e-05,2]
[420290659,1775915441547,-557.5788265,9.201e-05,2]
[420290661,1775915441558,-500.0,9.268e-05,2]
[420290663,1775915441577,-2257.443,9.291e-05,2]
[420290665,1775915441599,-1407.0,9.291e-05,2]
[420290667,1775915441615,-150.0,9.291e-05,2]
[420290668,1775915441624,-150.0,9.291e-05,2]
[420290671,1775915441649,-150.0,9.291e-05,2]
[420290674,1775915441660,-259.39716005,9.343e-05,2]
[420290676,1775915441670,-333.6284268,9.345e-05,2]
[420290678,1775915441694,-500.0,9.368e-05,2]
[420290680,1775915441708,-2398.4119403,9.489e-05,2]
[420290682,1775915441720,-1000.0,9.581e-05,2]
[420290684,1775915441755,-791.0,9.581e-05,2]
[420290686,1775915441767,-1500.0,9.628e-05,2]
[420290688,1775915441807,-1500.0,9.628e-05,2]
[420290689,1775915441820,-1500.0,9.628e-05,2]
[420290691,1775915441874,-1500.0,9.628e-05,2]
[420290693,1775915441951,-1887.6016112,9.71e-05,2]
[420290695,1775915441974,-1311.0929707,9.728e-05,2]
[420290697,1775915442004,-578.20924308,9.749e-05,2]
[420290699,1775915442018,-1000.0,9.816e-05,2]
[420290700,1775915442039,-3707.48073537,9.889e-05,2]
[420290702,1775915442049,-1000.0,9.916e-05,2]
[420290704,1775915442089,-4728.44120714,0.0001,2]
[420290706,1775915442103,-11628.46894329,0.0001,2]
[420290708,1775915442127,-10506.45478568,0.0001,2]
[420290710,1775915442149,-11673.71037432,0.0001,2]
[420290712,1775915442193,-9384.44062818,0.0001,2]
[420290714,1775915442206,-862.87,0.00010011,2]
[420290716,1775915442226,-908.5,0.00010011,2]
[420290718,1775915442245,-1001.19,0.00010012,2]
[420290719,1775915442253,-1127.49,0.00010013,2]
[420290721,1775915442263,-193.3185739,0.00010022,2]
[420290723,1775915442282,-162.380719,0.00010022,2]
[420290725,1775915442301,-2487.15318209,0.00010037,2]
[420290727,1775915442316,-47803.7077986,0.00010078,2]
[420290729,1775915442326,-1970.158777,0.00010096,2]
[420290731,1775915442342,-258.169689,0.00010096,2]
[420290733,1775915442360,-2000.0,0.00010176,2]
[420290735,1775915442371,-2000.0,0.00010176,2]
[420290737,1775915442382,-2031.3571458,0.00010176,2]
[420290739,1775915442399,-1034.52224133,0.00010176,2]
[420290741,1775915442420,-3919.9983457,0.0001024,2]
[420290743,1775915442433,-599.60298507,0.00010297,2]
[420290745,1775915442459,-169.148566,0.00010302,2]
[420290748,1775915442493,-90814.03627,0.00010302,2]
[420290750,1775915442517,-1500.0,0.00010364,2]
[420290752,1775915442528,-800.0,0.00010432,2]
[420290755,1775915442543,-842.38833765,0.00010464,2]
[420290757,1775915442563,-800.0,0.000105,2]
[420290759,1775915442576,-800.0,0.00010508,2]
[420290761,1775915442592,-1000.0,0.00010539,2]
[420290764,1775915442608,-1000.0,0.00010539,2]
[420290766,1775915442622,-3096.70411887,0.00010567,2]
[420290768,1775915442636,-455.5567169,0.00010576,2]
[420290771,1775915442650,-151.1085423,0.00010576,2]
[420290773,1775915442664,-2579.17784983,0.00010585,2]
[420290775,1775915442680,-800.0,0.0001059,2]
[420290777,1775915442693,-800.0,0.00010597,2]
[420290779,1775915442706,-1066.79185815,0.00010644,2]
[420290781,1775915442719,-1887.6016112,0.00010661,2]
[420290784,1775915442731,-1311.0929707,0.00010699,2]
[420290786,1775915442744,-2500.0,0.00010724,2]
[420290788,1775915442758,-2500.0,0.00010724,2]
[420290790,1775915442771,-621.78829552,0.00010845,2]
[420290792,1775915442783,-1517.7311208,0.00010861,2]
[420290794,1775915442801,-5000.0,0.00010861,2]
[420290797,1775915442819,-5000.0,0.00010861,2]
[420290799,1775915442837,-5000.0,0.00010861,2]
[420290801,1775915442859,-683.6137343,0.00010912,2]
[420290805,1775915442882,-620.00194492,0.0001094,2]
[420290807,1775915442901,-6584.48578602,0.00010941,2]
[420290809,1775915442921,-1041.64145107,0.0001095,2]
[420290811,1775915442933,-15380.3736,0.00010959,2]
[420290813,1775915442952,-154.0,0.00010959,2]
[420290816,1775915442971,-249.393566,0.00010959,2]
[420290818,1775915442983,-500.0,0.00010959,2]
[420290820,1775915442997,-500.0,0.00010959,2]
[420290822,1775915443012,-299.40614815,0.00010959,2]
[420290824,1775915443025,-500.0,0.00010959,2]
[420290826,1775915443044,-500.0,0.00010959,2]
[420290829,1775915443058,-500.0,0.00010959,2]
[420290831,1775915443071,-500.0,0.00010959,2]
[420290833,1775915443084,-500.0,0.00010959,2]
[420290835,1775915443097,-500.0,0.00010959,2]
[420290837,1775915443110,-500.0,0.00010959,2]
[420290841,1775915443131,-500.0,0.00010959,2]
[420290845,1775915443147,-931.77434563,0.00010959,2]
[420290848,1775915443168,-931.77434563,0.00010959,2]
[420290850,1775915443183,-931.77434563,0.00010959,2]
[420290853,1775915443197,-931.77434563,0.00010959,2]
[420290855,1775915443215,-931.77434563,0.00010959,2]
[420290857,1775915443231,-931.77434563,0.00010959,2]
[420290859,1775915443247,-948.41133504,0.00010959,2]
[420290861,1775915443257,-948.41133504,0.00010959,2]
[420290863,1775915443276,-948.41133504,0.00010959,2]
[420290865,1775915443293,-948.41133504,0.00010959,2]
[420290868,1775915443307,-948.41133504,0.00010959,2]
[420290870,1775915443325,-948.41133504,0.00010959,2]
[420290872,1775915443340,-948.41133504,0.00010959,2]
[420290874,1775915443359,-992.67053067,0.00010959,2]
[420290876,1775915443373,-992.67053067,0.00010959,2]
[420290878,1775915443393,-992.67053067,0.00010959,2]
[420290880,1775915443409,-155.0,0.00011128,2]
[420290883,1775915443425,-555.0,0.00011128,2]
[420290885,1775915443437,-222.0,0.00011129,2]
[420290887,1775915443455,-2674.60743027,0.00011133,2]
[420290889,1775915443467,-555.0,0.00011172,2]
[420290891,1775915443479,-444.0,0.00011172,2]
[420290893,1775915443497,-333.0,0.00011172,2]
[420290895,1775915443511,-3000.0,0.00011272,2]
[420290897,1775915443525,-3000.0,0.00011272,2]
[420290899,1775915443539,-168.3888056,0.00011391,2]
[420290901,1775915443552,-644.79446246,0.00011393,2]
[420290903,1775915443563,-27814.46496036,0.00011397,2]
[420290926,1775915443858,-19989.24283824,0.00011397,2]
[420290928,1775915443891,-324.387381,0.00011398,2]
[420290930,1775915443907,-620.00009725,0.00011487,2]
[420290932,1775915443933,-1000.0,0.00011593,2]
[420290935,1775915443956,-1000.0,0.00011593,2]
[420290937,1775915443979,-579.0,0.00011593,2]
[420290939,1775915444003,-1887.6016112,0.00011613,2]
[420290941,1775915444018,-1311.0929707,0.00011669,2]
[420290943,1775915444032,-2773.56790519,0.00011681,2]
[420290946,1775915444051,-194.85771837,0.0001182,2]
[420290948,1775915444073,-3500.0,0.0001182,2]
[420290950,1775915444088,-169.48882689,0.00011829,7]
[420290952,1775915444106,-470.44923926,0.00011941,2]
[420290955,1775915444121,-537.0,0.00011975,2]
[420290957,1775915444136,-500.0,0.00012,2]
[420290959,1775915444161,-4022.0,0.00012,2]
[420290962,1775915444173,-620.00000486,0.00012061,2]
[420290964,1775915444184,-500.0,0.00012211,2]
[420290966,1775915444205,-160.02,0.00012212,2]
[420290968,1775915444218,-2876.18991768,0.00012229,2]
[420290970,1775915444229,-325.203591,0.00012255,2]
[420290972,1775915444251,-325.203591,0.00012255,2]